Workbook

Sheet 價審單
A1: 價 審 單
A2: 卷 號 | B2: D23090002 | D2: 營業員 | E2: 杜孟釗 | F2: 特記事項： 1.本案保養保固18個月,成本已計入 2.本案由楊軒(0917-890702)介紹,介紹費成本已計入 | L2: 未稅(單價) | M2: 未稅(複價) | N2: 未稅(單價) | O2: 未稅(複價)
A3: 客戶名稱 | B3: 賽斯新能源有限公司 | C3: 案件名稱 | D3: 賽斯新能源(新吉段) | L3: 未稅(單價) | M3: 未稅(複價) | N3: 未稅(單價) | O3: 未稅(複價)
A4: 工地地址 | B4: 高雄市左營區文智路35巷22號後方 | D4: 詢價單號 | L4: 未稅(單價) | M4: 未稅(複價) | N4: 未稅(單價) | O4: 未稅(複價)
A5: 預定成交日 | B5: 112/9/30 | C5: 預訂交期 | D5: 113/3/1 | E5: 罰則 | F5: 0/1000天 | G5: 1.業務員權限>=80%以上；<80-75%呈至業務協理審核；<75%以下呈至總經理審核，並附上《附表一》。 2.如有訂金保證金(函)、履約保證金(函)、保固保證金(函)需呈至顧問審核. | L5: 未稅(單價) | M5: 未稅(複價) | N5: 未稅(單價) | O5: 未稅(複價)
A6: 總台數 | B6: =SUM(D11:D15) -> 1 | C6: 保證金或保函 | D6: 0 | E6: 破價% | F6: 批示售價 | L6: 未稅(單價) | M6: 未稅(複價) | N6: 未稅(單價) | O6: 未稅(複價)
A7: 牌價總額 | B7: =E16+E27 -> 1432710 | C7: 售價總額 | D7: 1100000 | E7: =D7/B7 -> 0.7677757536 | L7: 未稅(單價) | M7: 未稅(複價) | N7: 未稅(單價) | O7: 未稅(複價)
A8: 破價總額 | B8: =D7-B7 -> -332710 | C8: 破價(台) | D8: =B8/B6 -> -332710
A9: 整機單價 | F9: 業務部作業區
A10: 項次 | B10: 規 格 | C10: 單價 | D10: 數量 | E10: 複價 | F10: 金額(含稅) | G10: 價審% | H10: 配賦(含稅) | I10: 毛利(含稅) | J10: 備 註 | L10: 未稅(單價) | M10: 未稅(複價) | N10: 未稅(單價) | O10: 未稅(複價)
A11: 1 | B11: MAE100-12*10-CO90 | C11: 1100000 | D11: 1 | E11: =D11*C11 -> 1100000 | L11: =ROUND(F11/D11/1.05,-3) -> 0 | M11: =L11*D11 -> 0 | N11: 1950000 | O11: 1950000
A12: 2 | E12: =D12*C12 -> 0 | L12: =ROUND(F12/D12/1.05,-3) ->  | M12: =L12*D12 ->  | N12: 1979000 | O12: 1979000
A13: 3 | E13: 0
A14: 4 | E14: 0
A15: 5 | E15: 0
D16: 小計 | E16: =SUM(E11:E15) -> 1100000
A17: OPTION加價
A18: 項次 | B18: 選配規格 | C18: 單價 | D18: 數量 | E18: 複價 | F18: 項次 | G18: 選配規格 | H18: 單價 | I18: 數量 | J18: 複價 | L18: =ROUND(F18/#REF!/1.05,-3) ->  | M18: =L18*#REF! ->  | N18: 2023000 | O18: 2023000
A19: 1 | B19: 1F門扇髮紋不銹鋼 | C19: 4400 | D19: 10 | E19: =C19*D19 -> 44000 | F19: 9 | G19: MA007車廂 | H19: 33600 | I19: 1 | J19: =H19*I19 -> 33600
A20: 2 | B20: 車廂預留刷卡機接點 | C20: 10000 | D20: 1 | E20: =C20*D20 -> 10000 | F20: 10 | G20: 車廂挑高2500mm | H20: 18000 | I20: 1 | J20: =H20*I20 -> 18000
A21: 3 | B21: 清安費 | C21: 10000 | D21: 1 | E21: 10000 | F21: 11 | G21: 出入口挑高2300mm | H21: 3000 | I21: 10 | J21: 30000
A22: 4 | B22: 工地配合費用(變相器+人工) | C22: 35000 | D22: 1 | E22: 35000 | F22: 12 | G22: 介紹費 | H22: 10000 | I22: 1 | J22: 10000
A23: 5 | B23: 殘障用 | C23: 30000 | D23: 1 | E23: 30000 | F23: 13 | G23: 地震感知器 | H23: 14000 | I23: 1 | J23: =H23*I23 -> 14000
A24: 6 | B24: 保養保固增加6個月 | C24: 31110 | D24: 1 | E24: 31110 | F24: 14 | J24: 0
A25: 7 | B25: 分隔樑補強+工資費用 | C25: 60000 | D25: 1 | E25: 60000 | F25: 15
A26: 8 | B26: 一鍵呼 | C26: 7000 | D26: 1 | E26: 7000 | F26: 16
A27: 加價價格請參考表下OPTION表 | D27: 小計 | E27: =SUM(E19:E26,J19:J26) -> 332710 | F27: 藍字部分營業必須填寫資料，黑字部分由業務部填寫
A28: 付款辦法 | B28: 款別 | C28: 比列 | D28: 金額 | E28: 票期 | F28: 批示比例
A29: 材料 | B29: 1、訂金 | C29: 0.2 | D29: =C29*D7 -> 220000 | E29: 30天期票
B30: 2、貨到工地款 | C30: 0.5 | D30: =C30*D7 -> 550000 | E30: 30天期票
D31: =C31*D7 -> 0
D32: =C32*D7 -> 0
A33: 安裝 | B33: 3、安裝完畢款 | C33: 0.2 | D33: =C33*D7 -> 220000 | E33: 30天期票
B34: 4、交車款 | C34: 0.1 | D34: =SUM(D7*C34) -> 110000 | E34: 30天期票
A35: 合計 | C35: =SUM(C29:C34) -> 1 | D35: =SUM(D29:D34) -> 1100000
A36: 總經理 | C36: 業務部 協理 | E36: 業務部 承辦人 | G36: 區經理 | I36: 營業員 | J36: 杜孟釗
J37: 版次：1.1

Sheet OPTION表
B1: 代號 111(上) | C1: 用途 | D1: 規調表 仕樣代碼 | E1: 品 名 | F1: 110(下)規格.仕樣 | G1: 單位 | H1: 111(上)牌價 | I1: 110(下)牌價 | J1: 牌價差異 | K1: 牌價差異比率 | L1: 備 註
B5: 3C9200 | C5: P | D5: 288 | E5: 客貨用(PF梯) W≦1/4荷重 | F5: 單次載貨重≦1/4荷重 | G5: 台 | H5: 8900 | I5: 8500 | J5: =H5-I5 -> 400 | K5: =IF(I5>0,(H5-I5)/I5,-(H5-I5)/I5) -> 0.04705882353 | L5: 1.僅FLOOR強度結構配合. 2.不含SILL&地板材質變更.
E6: - | H6: 0
B7: 3F3000 | C7: F | D7: 3 | E7: 單次載貨重 (W≦1/2荷重) | F7: F-1000~2000kg | G7: 台 | H7: 7400 | I7: 7200 | J7: =H7-I7 -> 200 | K7: =IF(I7>0,(H7-I7)/I7,-(H7-I7)/I7) -> 0.02777777778
B8: 3F3200 | C8: F | D8: 3 | E8: 單次載貨重 (W＞1/2荷重) | F8: F-1000kg | G8: 台 | H8: 9700 | I8: 9400 | J8: =H8-I8 -> 300 | K8: =IF(I8>0,(H8-I8)/I8,-(H8-I8)/I8) -> 0.03191489362
B9: 3F3300 | C9: F | D9: 3 | E9: 單次載貨重 (W＞1/2荷重) | F9: F-1500kg | G9: 台 | H9: 14200 | I9: 13800 | J9: =H9-I9 -> 400 | K9: =IF(I9>0,(H9-I9)/I9,-(H9-I9)/I9) -> 0.02898550725
B10: 3F3400 | C10: F | D10: 3 | E10: 單次載貨重 (W＞1/2荷重) | F10: F-2000kg | G10: 台 | H10: 27800 | I10: 27100 | J10: =H10-I10 -> 700 | K10: =IF(I10>0,(H10-I10)/I10,-(H10-I10)/I10) -> 0.0258302583
B12: 7C7700 | C12: P | D12: 4255 | E12: ≧24L 加計(台)(任何速度) | F12: 採60C鐵芯CABLE | G12: 台 | H12: 53700 | I12: 53200 | J12: =H12-I12 -> 500 | K12: =IF(I12>0,(H12-I12)/I12,-(H12-I12)/I12) -> 0.009398496241 | L12: 1.鐵芯CABLE:採60C鐵芯CABLE
B13: 7C7800 | C13: P | D13: 4255 | E13: ≧24L 加計(樓)(任何速度) | F13: 採60C鐵芯CABLE | G13: 樓 | H13: 2900 | I13: 2700 | J13: 200 | K13: 0.07407407407
B14: 3C7600 | C14: P | D14: 4255 | E14: COMP CHAIN (台) | F14: P8~P11人 (60m 10停) | G14: 台 | H14: 13700 | I14: 13500 | J14: 200 | K14: 0.01481481481 | L14: 1.適用:行程≧30m以上加計 2.60m≧10停以上加計(90.105m MI已內含) 3.(例) P15*12-CO60 ⊕17,800/台+ 1,400/停*2停=⊕20,600/台
B15: 3C7700 | C15: P | D15: 4255 | E15: COMP CHAIN (樓) | F15: ± 1停 (P8~P11 60m) | G15: 樓 | H15: 900 | I15: 900 | J15: 0 | K15: 0
B16: 3C7800 | C16: P | D16: 4255 | E16: COMP CHAIN (台) | F16: P12~P17人 (60m 10停) | G16: 台 | H16: 17800 | I16: 17600 | J16: 200 | K16: 0.01136363636
B17: 3C7900 | C17: P | D17: 4255 | E17: COMP CHAIN (樓) | F17: ± 1停 (P12~P17 60m) | G17: 樓 | H17: 1400 | I17: 1400 | J17: 0 | K17: 0
B18: 3C8000 | C18: P | D18: 4255 | E18: COMP CHAIN (台) | F18: P20~P24人 (60m 10停) | G18: 台 | H18: 23600 | I18: 23300 | J18: 300 | K18: 0.01287553648
B19: 3C8100 | C19: P | D19: 4255 | E19: COMP CHAIN (樓) | F19: ± 1停 (P20~P24 60m) | G19: 樓 | H19: 2200 | I19: 2200 | J19: 0 | K19: 0
B20: 3B0700 | C20: B | D20: 4255 | E20: COMP CHAIN (台) | F20: B-750~1000kg(45~60m 10停) | G20: 台 | H20: 17700 | I20: 17500 | J20: 200 | K20: 0.01142857143 | L20: 1.適用:行程≧30m以上加計 2.≧10停以上加計
B21: 3B0750 | C21: B | D21: 4255 | E21: COMP CHAIN (樓) | F21: B-750~1000kg +1停 | G21: 樓 | H21: 1400 | I21: 1400 | J21: 0 | K21: 0
B22: 3F2000 | C22: F | D22: 4255 | E22: COMP CHAIN (台) | F22: F-1000~2000kg(45~60m 10停) | G22: 台 | H22: 17800 | I22: 17600 | J22: 200 | K22: 0.01136363636 | L22: 1.適用:行程≧30m以上加計 2.≧10停以上加計
B23: 3F2100 | C23: F | D23: 4255 | E23: COMP CHAIN (樓) | F23: F-1000~2000kg +1停 | G23: 樓 | H23: 2100 | I23: 2100 | J23: 0 | K23: 0
B24: 3F2200 | C24: F | D24: 4255 | E24: COMP CHAIN (台) | F24: F-2500~3000kg(45~60m 10停) | G24: 台 | H24: 23500 | I24: 23300 | J24: 200 | K24: 0.008583690987 | L24: 1.適用:行程≧30m以上加計 2.≧10停以上加計
B25: 3F2300 | C25: F | D25: 4255 | E25: COMP CHAIN (樓) | F25: F-2500~3000kg +1停 | G25: 樓 | H25: 2100 | I25: 2100 | J25: 0 | K25: 0
B27: 4C3000 | C27: P | D27: 6 | E27: 2P-CO→2S-2P(台) | F27: P6~24人(OP≦1100) | G27: 台 | H27: 10400 | I27: 7200 | J27: =H27-I27 -> 3200 | K27: =IF(I27>0,(H27-I27)/I27,-(H27-I27)/I27) -> 0.4444444444 | L27: 標準仕樣: 標準OP*EH-2100 門框AS-1X(SH),出入口門(IP)
B28: 4C3100 | C28: P | D28: 6 | E28: 2P-CO→2S-2P(停) | F28: P6~24人(OP≦1100) | G28: 停 | H28: 5400 | I28: 7800 | J28: -2400 | K28: -0.3076923077
B29: 3C5000 | C29: P | D29: 282 | E29: 千鳥型(EAS人乘需另加計CWT側落) | F29: P9人 | G29: 台 | H29: 128900 | I29: 120600 | J29: 8300 | K29: 0.0688225539 | L29: 不含RAIL跳級,含帶鎖門刀追加
B30: 3C5100 | C30: P | D30: 282 | E30: 千鳥型(EAS人乘需另加計CWT側落) | F30: P10~P11人 | G30: 台 | H30: 157500 | I30: 151500 | J30: 6000 | K30: 0.0396039604 | L30: 含CAGE RAIL:T-8K→T-13K,含帶鎖門刀追加
B31: 3C5200 | C31: P | D31: 282 | E31: 千鳥型(EAS人乘需另加計CWT側落) | F31: P12~P15人 | G31: 台 | H31: 139200 | I31: 131400 | J31: 7800 | K31: 0.05936073059 | L31: 含CWT RAIL:T-5K→T-8K,,含帶鎖門刀追加
B32: 3C5300 | C32: P | D32: 282 | E32: 千鳥型(EAS人乘需另加計CWT側落) | F32: P17~P24人 | G32: 台 | H32: 128900 | I32: 120600 | J32: 8300 | K32: 0.0688225539 | L32: 不含RAIL跳級,含帶鎖門刀追加
B33: 3C5050 | C33: P | D33: 282 | E33: L型千鳥(其他相關需另計) | F33: P9人 | G33: 台 | H33: 282700 | I33: 268500 | J33: =H33-I33 -> 14200 | K33: 0.05288640596 | L33: 報價不含2S-2P,CWT側落式,需以OPTION另計 報價含帶鎖門刀追加 P9人:含RAIL 8K*5K→8K*8K(10停) P10~P11人:含RAIL 8K*5K→13K*8K(10停) P12~P15人:含RAIL 13K*5K→13K*8K(10停)
B34: 3C5150 | C34: P | D34: 282 | E34: L型千鳥(其他相關需另計) | F34: P10~P11人 | G34: 台 | H34: 314900 | I34: 302000 | J34: =H34-I34 -> 12900 | K34: 0.04271523179
B35: 3C5250 | C35: P | D35: 282 | E35: L型千鳥(其他相關需另計) | F35: P12~P15人 | G35: 台 | H35: 297400 | I35: 283300 | J35: =H35-I35 -> 14100 | K35: 0.04977056124
B36: 3B0800 | C36: B | D36: 282 | E36: 千鳥型&THROUGH | F36: B-750~1000kg | G36: 台 | H36: 157900 | I36: 148300 | J36: 9600 | K36: 0.06473364801 | L36: 1.含車廂出入口配合&立組工時追加 2.含SUB OPB等電氣品追加 (RAIL不跳級計)
B37: 4F3000 | C37: F | D37: 282 | E37: 千鳥型 | F37: F-1000kg~2000kg | G37: 台 | H37: 135400 | I37: 129100 | J37: 6300 | K37: 0.04879938033
B38: 4F3100 | C38: F | D38: 282 | E38: 千鳥型 | F38: F-2500kg~3000kg | G38: 台 | H38: 179400 | I38: 170800 | J38: =H38-I38 -> 8600 | K38: 0.05035128806
B39: B00100 | C39: P.B | D39: 282 | E39: 出入口防落網(UAS1-06千鳥選用) | F39: 2*樓數-停數 | G39: 停 | H39: 5400 | I39: 5400 | J39: 0 | K39: 0 | L39: UAS1-06千鳥無法規劃帶鎖門刀
B40: Y24700 | C40: F | D40: 282 | E40: 出入口防落板(F梯千鳥選用) (以施作面積M²計算加價) | F40: {(行程*2)-[(停數-1)* (EH+0.4)]}*(OP+0.1) *1000元/M² | G40: M² | H40: 1000 | I40: 1000 | J40: =H40-I40 -> 0 | K40: 0 | L40: 1.{(行程*2)- [(停數-1)*(EH+0.4)]}*(OP+0.1)*1000元/M² 2.加價1000元為防落板面積每平方公尺施作費用
A42: 新增 | B42: 3C9450 | C42: P | D42: 280 | E42: GUIDE SHOE→GUIDE ROLLER | F42: EAS-P8~24人 | G42: 台 | H42: 57200 | J42: =H42-I42 -> 57200 | K42: =IF(I42>0,(H42-I42)/I42,-(H42-I42)/I42) -> 
B44: 7C0100 | C44: P.B.F | D44: 8 | E44: DUP (2台聯動) | G44: 群 | H44: 6800 | I44: 6800 | J44: =H44-I44 -> 0 | K44: =IF(I44>0,(H44-I44)/I44,-(H44-I44)/I44) -> 0 | L44: 配賦予聯動第1台,而聯動第2台不配賦.
B45: 7C0200 | C45: P.B | D45: 8 | E45: FT-2 群管理 (3~8台/群) | F45: 3~8台群管理(無群管理盤) | G45: 群 | H45: 53400 | I45: 51400 | J45: =H45-I45 -> 2000 | K45: =IF(I45>0,(H45-I45)/I45,-(H45-I45)/I45) -> 0.03891050584 | L45: 配賦於NO.1號機,另IND應採HALL-LANT,費用另計 2.IND應採HALL-LANT,費用另計
B46: 7C0400 | C46: P | D46: 8 | E46: 群管理切離1台單獨運轉 | G46: 台 | H46: 8900 | I46: 8800 | J46: =H46-I46 -> 100 | K46: =IF(I46>0,(H46-I46)/I46,-(H46-I46)/I46) -> 0.01136363636 | L46: 僅配賦予切離號機.
B48: 7C6900 | C48: P | D48: 9 | E48: EAS電源電壓380V(控盤對應) | F48: EAS-P6~P11人(60m) | G48: 台 | H48: 5300 | I48: 4600 | J48: =H48-I48 -> 700 | K48: =IF(I48>0,(H48-I48)/I48,-(H48-I48)/I48) -> 0.152173913
B49: 7C6950 | C49: P | D49: 9 | E49: EAS電源電壓220V(主機,控盤對應) | F49: EAS-P8~P11人(90m) | G49: 台 | H49: 23900 | I49: 18400 | J49: 5500 | K49: =IF(I49>0,(H49-I49)/I49,-(H49-I49)/I49) -> 0.2989130435 | L49: 主機以大(GSD-MM)代小(GSD-MM1)
B50: 7C7300 | C50: P | D50: 9 | E50: 電源電壓380V(扣除TRANS 7KVA) | F50: VAG-P6~15人(60m) | G50: 台 | H50: -21600 | I50: -21000 | J50: -600 | K50: =IF(I50>0,(H50-I50)/I50,-(H50-I50)/I50) -> -0.02857142857 | L50: 扣除降壓TRANS.(MI已內附加計7KVA TRANS)
B51: 7C7350 | C51: P | D51: 9 | E51: 電源電壓220V(追加TRANS 12KVA) | F51: VAG-P8~P15人(90,105m) | G51: 台 | H51: 37200 | I51: 33300 | J51: 3900 | K51: 0.1171171171 | L51: 追加昇壓TRANS:容量12KVA
B52: 7C7400 | C52: P.B.F | D52: 203 | E52: 追加能源回饋裝置 (Regen 11KW) | F52: EAS-P12~P24人(60m) | G52: 台 | H52: 43700 | I52: 37900 | J52: 5800 | K52: 0.1530343008
B53: 7C7410 | C53: P.B.F | D53: 203 | E53: 追加能源回饋裝置 (Regen 11KW) | F53: EAS-P8~P15人(90,105m) | G53: 台 | H53: 43700 | I53: 37900 | J53: 5800 | K53: 0.1530343008
B54: 7C7420 | C54: P.B.F | D54: 203 | E54: 追加能源回饋裝置 (Regen 22KW) | F54: EAS-P17~P20人(90,105m) | G54: 台 | H54: 55900 | I54: 48500 | J54: 7400 | K54: 0.1525773196
B55: 7C7430 | C55: P.B.F | D55: 203 | E55: 追加能源回饋裝置 (Regen 22KW) | F55: EAS-P13~P17人(120m) | G55: 台 | H55: 55900 | I55: 48500 | J55: 7400 | K55: 0.1525773196
B56: 7C7440 | C56: P.B.F | D56: 203 | E56: 追加能源回饋裝置 (Regen 22KW) | F56: EAS-P13~P17人(150m) | G56: 台 | H56: 55900 | I56: 48500 | J56: 7400 | K56: 0.1525773196
B57: G02300 | C57: P.B.F | D57: 334 | E57: 變相器借用費用(含運費) | G57: 台 | H57: 7700 | I57: 7700 | J57: 0 | K57: 0
B58: F03800 | C58: P.B.F | D58: 333 | E58: 變壓器借用費用(含運費) | G58: 台 | H58: 7700 | I58: 7700 | J58: 0 | K58: 0
B59: 7F1100 | C59: F | D59: 9 | E59: 電源電壓220V(追加TRANS 20KVA) | F59: F-1500kg~2000kg | G59: 台 | H59: 36500 | I59: 33100 | J59: 3400 | K59: 0.1027190332
B60: 7F1200 | C60: F | D60: 9 | E60: 電源電壓220V(追加TRANS 25KVA) | F60: F-2500kg~3000kg | G60: 台 | H60: 52200 | I60: 51300 | J60: 900 | K60: 0.01754385965
B62: 4C8900 | C62: P | D62: 10.11.52 | E62: 明鏡嵌入式(僅車廂後側)預留10mm | F62: P6~P24人 | G62: 台 | H62: 8700 | I62: 8000 | J62: =H62-I62 -> 700 | K62: 0.0875
B63: 4C8950 | C63: P | D63: 10.11.52 | E63: 明鏡嵌入式(車廂三側)預留10mm | F63: P6~P24人 | G63: 台 | H63: 17300 | I63: 16000 | J63: 1300 | K63: 0.08125
B64: 4C4100 | C64: P | D64: 10.11 | E64: 車廂內法特殊 | F64: P6~P24人 | G64: 台 | H64: 17000 | I64: 15700 | J64: 1300 | K64: 0.08280254777
B65: 4B1500 | C65: B | D65: 10.11 | E65: 車廂內法特殊 | F65: B-750~1000kg | G65: 台 | H65: 28000 | I65: 26000 | J65: 2000 | K65: 0.07692307692
B66: 4F5000 | C66: F | D66: 10.11 | E66: 車廂內法特殊 | F66: F-1000kg~2000kg | G66: 台 | H66: 28200 | I66: 26300 | J66: 1900 | K66: 0.07224334601
B67: 4F5100 | C67: F | D67: 10.11 | E67: 車廂內法特殊 | F67: F-2500kg~3000kg | G67: 台 | H67: 36400 | I67: 33800 | J67: 2600 | K67: 0.07692307692
B69: 4C4000 | C69: P | D69: 157 | E69: 天井加高 ⊕200mm | F69: 側板(CE)選用 | G69: 台 | H69: 8700 | I69: 8600 | J69: =H69-I69 -> 100 | K69: 0.01162790698 | L69: 1.車廂側板&廂門(CE),天井型式(標準) 2.廂門高度:EH-2100
B70: Y07800 | C70: P | D70: 157 | E70: 天井加高 ⊕400mm | F70: 側板(CE)選用 | G70: 台 | H70: 34400 | I70: 34400 | J70: 0 | K70: 0
B71: Y08100 | C71: P | D71: 157 | E71: 天井加高 ⊕300mm | F71: 側板(CE)選用 | G71: 台 | H71: 28400 | I71: 28400 | J71: 0 | K71: =IF(I71>0,(H71-I71)/I71,-(H71-I71)/I71) -> 0
B72: 4C4010 | C72: P | D72: 157 | E72: 天井加高 ⊕200mm | F72: 側板(SH or SM)選用 | G72: 台 | H72: 32300 | I72: 26700 | J72: 5600 | K72: 0.2097378277 | L72: 1.車廂側板材質特殊,需OPTION另計 2.廂門高度:EH-2100
B73: 4C4020 | C73: P | D73: 157 | E73: 天井加高 ⊕200mm | F73: 側板(SH.SM鍍鈦金)選用 | G73: 台 | H73: 32300 | I73: 28200 | J73: 4100 | K73: 0.1453900709
B74: 4C4030 | C74: P | D74: 157 | E74: 天井加高 ⊕200mm | F74: 側板(SH.SM鍍鈦遠東)選用 | G74: 台 | H74: 61000 | I74: 55900 | J74: 5100 | K74: 0.09123434705
B76: 4C3200 | C76: P | D76: 12,13 | E76: OP-800→OP-900 (台) | F76: P6~12人(車廂標準式樣) | G76: 台 | H76: 5200 | I76: 5000 | J76: =H76-I76 -> 200 | K76: 0.04 | L76: 車廂標準式樣: 車廂前側,兩後側&廂門(CE) 乘場標準式樣: 小型門框 SH 1.2T NSSC180, H.DR(IP) 1.僅乘場.車廂開門尺寸變更費用 (乘場門框型式,材質及車廂使用材質,需另議加計) 2.天井淨高2300mm(標準) 3.OPB型式: KF-D型式(SM)
B77: 4C3300 | C77: P | D77: 12,13 | E77: OP-800→OP-900 (停) | F77: P6~12人(乘場標準式樣) | G77: 停 | H77: 500 | I77: 400 | J77: 100 | K77: 0.25
B78: 4C3400 | C78: P | D78: 12,13 | E78: OP-900→OP-1000 (台) | F78: P13~15人(車廂標準式樣) | G78: 台 | H78: 4600 | I78: 4500 | J78: 100 | K78: 0.02222222222
B79: 4C3500 | C79: P | D79: 12,13 | E79: OP-900→OP-1000 (停) | F79: P13~15人(乘場標準式樣) | G79: 停 | H79: 2400 | I79: 6300 | J79: -3900 | K79: -0.619047619
B80: 4C3600 | C80: P | D80: 12,13 | E80: OP-1000→OP-1100 (台) | F80: P17~20人(車廂標準式樣) | G80: 台 | H80: 3400 | I80: 4000 | J80: -600 | K80: -0.15
B81: 4C3700 | C81: P | D81: 12,13 | E81: OP-1000→OP-1100 (停) | F81: P17~20人(乘場標準式樣) | G81: 停 | H81: 600 | I81: 1000 | J81: -400 | K81: -0.4
B82: 4C3800 | C82: P | D82: 12,13 | E82: EH-2100→EH-2300 (台) | F82: 側板(CE)選用 | G82: 台 | H82: 8100 | I82: 10900 | J82: -2800 | K82: -0.2568807339 | L82: 含天井加高⊕200mm加計
B83: 4C3900 | C83: P | D83: 12,13 | E83: EH-2100→EH-2300 (停) | F83: H.DR(IP)選用 | G83: 停 | H83: 1300 | I83: 900 | J83: 400 | K83: 0.4444444444
B84: 4C3910 | C84: P | D84: 12,13 | E84: EH-2100→EH-2300 (台) | F84: 側板(SH or SM)選用 | G84: 台 | H84: 31800 | I84: 28600 | J84: 3200 | K84: 0.1118881119 | L84: 含天井加高⊕200mm加計,側板材質特殊,需OPTION另計
B85: 4C3920 | C85: P | D85: 12,13 | E85: EH-2100→EH-2300 (停) | F85: H.DR(SH or SM)選用 | G85: 停 | H85: 4300 | I85: 2600 | J85: 1700 | K85: 0.6538461538 | L85: 乘場部品材質特殊,需OPTION另計
B86: 4C3930 | C86: P | D86: 12,13 | E86: EH-2100→EH-2300 (台) | F86: 側板(SH.SM鍍鈦金)選用 | G86: 台 | H86: 34900 | I86: 30400 | J86: 4500 | K86: 0.1480263158 | L86: 含天井加高⊕200mm加計,側板材質特殊,需OPTION另計
B87: 4C3940 | C87: P | D87: 12,13 | E87: EH-2100→EH-2300 (停) | F87: H.DR(SH.SM鍍鈦金)選用 | G87: 停 | H87: 5500 | I87: 3900 | J87: 1600 | K87: 0.4102564103 | L87: 乘場部品材質特殊,需OPTION另計
B88: 4C3950 | C88: P | D88: 12,13 | E88: EH-2100→EH-2300 (台) | F88: 側板(SH.SM鍍鈦遠東)選用 | G88: 台 | H88: 66100 | I88: 60700 | J88: 5400 | K88: 0.08896210873 | L88: 含天井加高⊕200mm加計,側板材質特殊,需OPTION另計
B89: 4C3960 | C89: P | D89: 12,13 | E89: EH-2100→EH-2300 (停) | F89: H.DR(SH.SM鍍鈦遠東)選用 | G89: 停 | H89: 7000 | I89: 6300 | J89: 700 | K89: 0.1111111111 | L89: 乘場部品材質特殊,需OPTION另計
B90: 4B1000 | C90: B | D90: 12,13,157 | E90: 天井加高⊕200mm(EH-2300) (台) | F90: 側板(CE)選用 | G90: 台 | H90: 10300 | I90: 10100 | J90: 200 | K90: 0.0198019802
B91: 4B1010 | C91: B | D91: 12,13,157 | E91: 天井加高⊕200mm(EH-2300) (停) | F91: H.DR(IP)選用 | G91: 停 | H91: 3600 | I91: 2500 | J91: 1100 | K91: 0.44
B92: 4B1100 | C92: B | D92: 12,13,157 | E92: 天井加高⊕200mm(EH-2300) (台) | F92: 側板(SH or SM)選用 | G92: 台 | H92: 43500 | I92: 36900 | J92: 6600 | K92: 0.1788617886 | L92: 側板材質特殊,需OPTION另計
B93: 4B1110 | C93: B | D93: 12,13,157 | E93: 天井加高⊕200mm(EH-2300) (停) | F93: H.DR(SH or SM)選用 | G93: 停 | H93: 7200 | I93: 5100 | J93: 2100 | K93: 0.4117647059 | L93: 乘場部品材質特殊,需OPTION另計
B94: 4B1200 | C94: B | D94: 12,13,157 | E94: 天井加高⊕200mm(EH-2300) (台) | F94: 側板(SH.SM鍍鈦金)選用 | G94: 台 | H94: 71300 | I94: 63100 | J94: 8200 | K94: 0.1299524564 | L94: 側板材質特殊,需OPTION另計
B95: 4B1210 | C95: B | D95: 12,13,157 | E95: 天井加高⊕200mm(EH-2300) (停) | F95: H.DR(SH.SM鍍鈦金)選用 | G95: 停 | H95: 6200 | I95: 5200 | J95: 1000 | K95: 0.1923076923 | L95: 乘場部品材質特殊,需OPTION另計
B96: 4B1300 | C96: B | D96: 12,13,157 | E96: 天井加高⊕200mm(EH-2300) (台) | F96: 側板(SH.SM鍍鈦遠東)選用 | G96: 台 | H96: 90900 | I96: 83000 | J96: 7900 | K96: 0.09518072289 | L96: 側板材質特殊,需OPTION另計
B97: 4B1310 | C97: B | D97: 12,13,157 | E97: 天井加高⊕200mm(EH-2300) (停) | F97: H.DR(SH.SM鍍鈦遠東)選用 | G97: 停 | H97: 8900 | I97: 7900 | J97: 1000 | K97: 0.1265822785 | L97: 乘場部品材質特殊,需OPTION另計
B98: 4F1000 | C98: F | D98: 12,13,157 | E98: 天井加高⊕200mm(EH-2300) (台) | F98: F-1000~2000kg | G98: 台 | H98: 31200 | I98: 30300 | J98: =H98-I98 -> 900 | K98: 0.0297029703
B99: 4F1100 | C99: F | D99: 12,13,157 | E99: 天井加高⊕200mm(EH-2300) (停) | F99: F-1000~2000kg | G99: 停 | H99: 11600 | I99: 6800 | J99: =H99-I99 -> 4800 | K99: 0.7058823529
B100: 4F1200 | C100: F | D100: 12,13,157 | E100: 天井加高⊕200mm(EH-2500) (台) | F100: F-2500kg~3000kg | G100: 台 | H100: 82500 | I100: 66500 | J100: =H100-I100 -> 16000 | K100: 0.2406015038
B101: 4F1300 | C101: F | D101: 12,13,157 | E101: 天井加高⊕200mm(EH-2500) (停) | F101: F-2500kg~3000kg | G101: 停 | H101: 23900 | I101: 15500 | J101: =H101-I101 -> 8400 | K101: 0.5419354839
B103: Y01100 | C103: P.B.F | D103: 298 | E103: 鋼骨結構配合費用(P-12~24人) | F103: P12~P24人 (60m~105m 10停) | G103: 台 | H103: 20200 | I103: 20200 | J103: =H103-I103 -> 0 | K103: =IF(I103>0,(H103-I103)/I103,-(H103-I103)/I103) -> 0 | L103: 工程定芯(台),防火披覆清潔(10停), 配合IND固定(10停)
B104: Y01200 | C104: P.B.F | D104: 298 | E104: 鋼骨結構配合費用(P-12~24人) | F104: ±1停 | G104: 樓 | H104: 1000 | I104: 1000 | J104: =H104-I104 -> 0 | K104: 0
B105: Y02200 | C105: P | D105: 298 | E105: 鋼骨結構(停)(UAS1-06) | G105: 樓 | H105: 1000 | I105: 1000 | J105: =H105-I105 -> 0 | K105: 0
B107: 3C4000 | C107: P | D107: 155 | E107: CWT附WEDGE(台) | F107: P6~P15人 (60m 6停) | G107: 台 | H107: 42900 | I107: 42100 | J107: =H107-I107 -> 800 | K107: 0.0190023753 | L107: 1.CWT FRAME變更及追加GOV&ROPE等 2.含CWT RAIL: T-5K → T-8K
B108: 3C4100 | C108: P | D108: 155 | E108: CWT附WEDGE(台) | F108: P8~P15人 (90,105m 10停) | G108: 台 | H108: 47600 | I108: 46800 | J108: 800 | K108: 0.01709401709
B109: 3C4200 | C109: P | D109: 155 | E109: CWT附WEDGE(樓) | F109: ± 1停 (60m,90,105m) | G109: 樓 | H109: 1700 | I109: 1300 | J109: 400 | K109: 0.3076923077
B110: 3C4300 | C110: P | D110: 155 | E110: CWT附WEDGE(台) | F110: P17人 (60m 6停) | G110: 台 | H110: 58100 | I110: 57800 | J110: 300 | K110: 0.005190311419 | L110: 1.CWT FRAME變更及追加GOV&ROPE等 2.含CWT RAIL:T-8K → T-13K
B111: 3C4400 | C111: P | D111: 155 | E111: CWT附WEDGE(台) | F111: P17人 (90,105m 10停) | G111: 台 | H111: 72700 | I111: 72400 | J111: 300 | K111: 0.004143646409
B112: 3C4500 | C112: P | D112: 155 | E112: CWT附WEDGE(樓) | F112: ± 1停 (60m,90,105m) | G112: 樓 | H112: 3700 | I112: 3300 | J112: 400 | K112: 0.1212121212
B113: 3C4600 | C113: P | D113: 155 | E113: CWT附WEDGE(台) | F113: P20~P24人 (60m 6停) | G113: 台 | H113: 65400 | I113: 64900 | J113: 500 | K113: 0.007704160247 | L113: 1.CWT FRAME變更及追加GOV&ROPE等 2.含CWT RAIL:T-13K → T-18K(賽維拉BE)
B114: 3C4700 | C114: P | D114: 155 | E114: CWT附WEDGE(台) | F114: P20~P24人 (90,105m 10停) | G114: 台 | H114: 88000 | I114: 87000 | J114: 1000 | K114: 0.01149425287
B115: 3C4800 | C115: P | D115: 155 | E115: CWT附WEDGE(樓) | F115: ± 1停 (60m,90,105m) | G115: 樓 | H115: 4500 | I115: 4300 | J115: 200 | K115: 0.04651162791
B116: 3S6000 | C116: P | D116: 155 | E116: CWT附WEDGE(台) | F116: UAS-P8人 (60m 6停) | G116: 台 | H116: 78800 | I116: 79800 | J116: -1000 | K116: -0.01253132832 | L116: 1.CWT FRAME變更及追加GOV&ROPE等 2.含CWT RAIL: T-5K → T-8K & SUB WT改鑄鐵式
B117: 3S6100 | C117: P | D117: 155 | E117: CWT附WEDGE(樓) | F117: UAS-P8人 ± 1停 | G117: 樓 | H117: 1100 | I117: 1200 | J117: -100 | K117: -0.08333333333
B118: 3C3200 | C118: P | D118: 155 | E118: CWT附WEDGE(台) | F118: P6~P15人(無機房用) | G118: 台 | H118: 86800 | I118: 65800 | J118: =H118-I118 -> 21000 | K118: =IF(I118>0,(H118-I118)/I118,-(H118-I118)/I118) -> 0.3191489362 | L118: 含混用式SUB WT→全部改鑄鐵式
B120: 1C0100 | C120: P | D120: 16.17 | E120: 小型門框 SH鍍鈦(金色) | F120: 2P-CO ≦OP-800~1100 | G120: 停 | H120: 3100 | I120: 2100 | J120: =H120-I120 -> 1000 | K120: 0.4761904762 | L120: 標準小型門框SH素材:為(NSSC180)1.2T板材 1.小型門框SM素材:為(日新)板材 2.小型門框SH鍍鈦素材:(唐榮)板於國內加工鍍鈦 3.小型門框SM鍍鈦素材:(日新)板於國內加工鍍鈦 4.[遠東]特殊色: 計有咖啡. 古銅. 古咖. 黑色
B121: 1C0150 | C121: P | D121: 16.17 | E121: 小型門框 SH鍍鈦(遠東特殊色) | F121: 2P-CO ≦OP-800~1100 | G121: 停 | H121: 4900 | I121: 3900 | J121: 1000 | K121: 0.2564102564
B122: 1C0200 | C122: P | D122: 16.17 | E122: 小型門框 SM | F122: 2P-CO ≦OP-800~1100 | G122: 停 | H122: 2600 | I122: 1700 | J122: 900 | K122: 0.5294117647
B123: 1C0300 | C123: P | D123: 16.17 | E123: 小型門框 SM鍍鈦(金色) | F123: 2P-CO ≦OP-800~1100 | G123: 停 | H123: 3700 | I123: 2800 | J123: 900 | K123: 0.3214285714
B124: 1C0350 | C124: P | D124: 16.17 | E124: 小型門框 SM鍍鈦(遠東特殊色) | F124: 2P-CO ≦OP-800~1100 | G124: 停 | H124: 5400 | I124: 4400 | J124: 1000 | K124: 0.2272727273
B125: 1C4000 | C125: P | D125: 16.17 | E125: 小型門框 亂紋板 | F125: 2P-CO ≦OP-800~1100 | G125: 停 | H125: 4400 | I125: 3500 | J125: 900 | K125: 0.2571428571 | L125: 1.(遠東)亂紋板: V-00 2.(遠東)亂紋鍍鈦(金色): V-01 3.(遠東)亂紋鍍鈦(特殊色): V-02~V-05
B126: 1C4020 | C126: P | D126: 16.17 | E126: 小型門框 亂紋鍍鈦(金色) | F126: 2P-CO ≦OP-800~1100 | G126: 停 | H126: 5900 | I126: 5000 | J126: 900 | K126: 0.18
B127: 1C4040 | C127: P | D127: 16.17 | E127: 小型門框 亂紋鍍鈦(遠東特殊色) | F127: 2P-CO ≦OP-800~1100 | G127: 停 | H127: 8900 | I127: 8000 | J127: 900 | K127: 0.1125
B128: 1C4100 | C128: P | D128: 16.17 | E128: 小型門框 霧珠板 | F128: 2P-CO ≦OP-800~1100 | G128: 停 | H128: 4600 | I128: 3700 | J128: 900 | K128: 0.2432432432 | L128: 1.(遠東)霧珠板: B-00 2.(遠東)霧珠鍍鈦(金色): B-01 3.(遠東)霧珠鍍鈦(特殊色): B-02~B-05
B129: 1C4120 | C129: P | D129: 16.17 | E129: 小型門框 霧珠鍍鈦(金色) | F129: 2P-CO ≦OP-800~1100 | G129: 停 | H129: 6100 | I129: 5200 | J129: 900 | K129: 0.1730769231
B130: 1C4140 | C130: P | D130: 16.17 | E130: 小型門框 霧珠鍍鈦(遠東特殊色) | F130: 2P-CO ≦OP-800~1100 | G130: 停 | H130: 9100 | I130: 8200 | J130: 900 | K130: 0.1097560976
B131: 1C2100 | C131: P | D131: 16.17.314 | E131: 小型門框(SH)指定SUS#304 | F131: 2P-CO≦OP-800~1100*2300H | G131: 停 | H131: 600 | I131: 500 | J131: 100 | K131: 0.2 | L131: 小型門框指定SUS#304: 為國內(唐榮)1.5T板材
B132: 1C0360 | C132: P | D132: 16.17 | E132: 小型門框 IP(仿鍍鈦烤漆) | F132: 2P-CO ≦OP-800~1100 | G132: 停 | H132: 1700 | I132: 1100 | J132: =H132-I132 -> 600 | K132: 0.5454545455 | L132: 仿古咖色, 仿黑色, 仿古銅色, 仿金色.
B133: 1C0370 | C133: P | D133: 16.17 | E133: 小型門框 SH(壓克力烤漆) | F133: 2P-CO ≦OP-800~1100 | G133: 停 | H133: 3400 | I133: 3300 | J133: =H133-I133 -> 100 | K133: =IF(I133>0,(H133-I133)/I133,-(H133-I133)/I133) -> 0.0303030303
B134: 1C0380 | C134: P | D134: 16.17 | E134: 小型門框 SH(仿鍍鈦烤漆) | F134: 2P-CO ≦OP-800~1100 | G134: 停 | H134: 3800 | I134: 3700 | J134: =H134-I134 -> 100 | K134: =IF(I134>0,(H134-I134)/I134,-(H134-I134)/I134) -> 0.02702702703
B135: Y03900 | C135: P | D135: 16.17 | E135: 隱藏式門框(無門框) | F135: 門框前緣鎖附角鐵以遮縫隙 | G135: 停 | H135: 700 | I135: 700 | J135: =H135-I135 -> 0 | K135: =IF(I135>0,(H135-I135)/I135,-(H135-I135)/I135) -> 0 | L135: 隱藏式門框前緣鎖附角鐵,業主裝潢時再移除
B136: 1C0800 | C136: P | D136: 18.19 | E136: 大型門框 SH | F136: OP-800~1100 A值≦380 | G136: 停 | H136: 13300 | I136: 10200 | J136: 3100 | K136: 0.3039215686 | L136: 1.大型門框SH素材:為國內(唐榮)板材 2.大型門框SM素材:為(日新)板材 3.大型門框SH鍍鈦素材:(唐榮)板於國內加工鍍鈦 4.大型門框SM鍍鈦素材:(日新)板於國內加工鍍鈦 5.[遠東]特殊色: 計有咖啡. 古銅. 古咖. 黑色
B137: 1C0900 | C137: P | D137: 18.19 | E137: 大型門框 SH鍍鈦(金色) | F137: OP-800~1100 A值≦380 | G137: 停 | H137: 20400 | I137: 17100 | J137: 3300 | K137: 0.1929824561
B138: 1C0950 | C138: P | D138: 18.19 | E138: 大型門框 SH鍍鈦(遠東特殊色) | F138: OP-800~1100 A值≦380 | G138: 停 | H138: 32300 | I138: 29000 | J138: 3300 | K138: 0.1137931034
B139: 1C1000 | C139: P | D139: 18.19 | E139: 大型門框 SM | F139: OP-800~1100 A值≦380 | G139: 停 | H139: 17500 | I139: 14200 | J139: 3300 | K139: 0.2323943662
B140: 1C1100 | C140: P | D140: 18.19 | E140: 大型門框 SM鍍鈦(金色) | F140: OP-800~1100 A值≦380 | G140: 停 | H140: 24400 | I140: 21400 | J140: 3000 | K140: 0.1401869159
B141: 1C1150 | C141: P | D141: 18.19 | E141: 大型門框 SM鍍鈦(遠東特殊色) | F141: OP-800~1100 A值≦380 | G141: 停 | H141: 36300 | I141: 33300 | J141: 3000 | K141: 0.09009009009
B142: 1C4400 | C142: P | D142: 18.19 | E142: 大型門框 亂紋板 | F142: OP-800~1100 A值≦380 | G142: 停 | H142: 20700 | I142: 17700 | J142: 3000 | K142: 0.1694915254 | L142: 1.(遠東)亂紋板: V-00 2.(遠東)亂紋鍍鈦(金色): V-01 3.(遠東)亂紋鍍鈦(特殊色): V-02~V-05
B143: 1C4420 | C143: P | D143: 18.19 | E143: 大型門框 亂紋鍍鈦(金色) | F143: OP-800~1100 A值≦380 | G143: 停 | H143: 27300 | I143: 24300 | J143: 3000 | K143: 0.1234567901
B144: 1C4440 | C144: P | D144: 18.19 | E144: 大型門框 亂紋鍍鈦(遠東特殊色) | F144: OP-800~1100 A值≦380 | G144: 停 | H144: 39100 | I144: 36100 | J144: 3000 | K144: 0.08310249307
B145: 1C4500 | C145: P | D145: 18.19 | E145: 大型門框 霧珠板 | F145: OP-800~1100 A值≦380 | G145: 停 | H145: 21400 | I145: 18400 | J145: 3000 | K145: 0.1630434783 | L145: 1.(遠東)霧珠板: B-00 2.(遠東)霧珠鍍鈦(金色): B-01 3.(遠東)霧珠鍍鈦(特殊色): B-02~B-05
B146: 1C4520 | C146: P | D146: 18.19 | E146: 大型門框 霧珠鍍鈦(金色) | F146: OP-800~1100 A值≦380 | G146: 停 | H146: 27700 | I146: 24700 | J146: 3000 | K146: 0.1214574899
B147: 1C4540 | C147: P | D147: 18.19 | E147: 大型門框 霧珠鍍鈦(遠東特殊色) | F147: OP-800~1100 A值≦380 | G147: 停 | H147: 39500 | I147: 36500 | J147: 3000 | K147: 0.08219178082
B148: 1C1160 | C148: P | D148: 18.19 | E148: 大型門框 IP(仿鍍鈦烤漆) | F148: OP-800~1100 A值≦380 | G148: 停 | H148: 9100 | I148: 8700 | J148: =H148-I148 -> 400 | K148: =IF(I148>0,(H148-I148)/I148,-(H148-I148)/I148) -> 0.04597701149 | L148: 仿古咖色, 仿黑色, 仿古銅色, 仿金色.
B149: 1C2200 | C149: P | D149: 18.19 | E149: (CO)配合防火門,大框包覆小框加工費 | F149: 2P-CO:工廠已組立好 | G149: 停 | H149: 2900 | I149: 2700 | J149: =H149-I149 -> 200 | K149: =IF(I149>0,(H149-I149)/I149,-(H149-I149)/I149) -> 0.07407407407 | L149: 防火門及大型門框加價需以OPTION另計
B150: Y23900 | C150: P.B | D150: 18.19 | E150: (2S)配合防火門,大框包覆小框加工費 | F150: 2S-2P:工廠未組立 | G150: 停 | H150: 10900 | I150: 10700 | J150: 200 | K150: 0.01869158879 | L150: 防火門及大型門框加價需以OPTION另計
B151: 1C0400 | C151: P | D151: 335.336 | E151: 小型門框附幕板 SH | F151: OP-800~1100 全高≦3000 | G151: 停 | H151: 14200 | I151: 13300 | J151: 900 | K151: 0.06766917293 | L151: 小型門框附幕板: 含HF-LM3顯示器 1.小型門框附幕板SH素材:為國內(唐榮)板材 2.小型門框附幕板SM素材:為(日新)板材 3.小框附幕板SH鍍鈦素材:(唐榮)板於國內加工鍍鈦 4.小框附幕板SM鍍鈦素材:(日新)板於國內加工鍍鈦 5.[遠東]特殊色: 計有咖啡. 古銅. 古咖. 黑色
B152: 1C0500 | C152: P | D152: 335.336 | E152: 小型門框附幕板 SH鍍鈦(金色) | F152: OP-800~1100 全高≦3000 | G152: 停 | H152: 21300 | I152: 19200 | J152: 2100 | K152: 0.109375
B153: 1C0550 | C153: P | D153: 335.336 | E153: 小框附幕板 SH鍍鈦(遠東特殊色) | F153: OP-800~1100 全高≦3000 | G153: 停 | H153: 29900 | I153: 27300 | J153: 2600 | K153: 0.09523809524
B154: 1C0600 | C154: P | D154: 335.336 | E154: 小型門框附幕板 SM | F154: OP-800~1100 全高≦3000 | G154: 停 | H154: 16000 | I154: 14900 | J154: 1100 | K154: 0.07382550336
B155: 1C0700 | C155: P | D155: 335.336 | E155: 小型門框附幕板 SM鍍鈦(金色) | F155: OP-800~1100 全高≦3000 | G155: 停 | H155: 23700 | I155: 21400 | J155: 2300 | K155: 0.1074766355
B156: 1C0750 | C156: P | D156: 335.336 | E156: 小框附幕板 SM鍍鈦(遠東特殊色) | F156: OP-800~1100 全高≦3000 | G156: 停 | H156: 31800 | I156: 29700 | J156: 2100 | K156: 0.07070707071
B157: 1C4200 | C157: P | D157: 335.336 | E157: 小型門框附幕板 亂紋板 | F157: OP-800~1100 全高≦3000 | G157: 停 | H157: 20900 | I157: 18800 | J157: 2100 | K157: 0.1117021277 | L157: 1.(遠東)亂紋板: V-00 2.(遠東)亂紋鍍鈦(金色): V-01 3.(遠東)亂紋鍍鈦(特殊色): V-02~V-05
B158: 1C4220 | C158: P | D158: 335.336 | E158: 小型門框附幕板 亂紋鍍鈦(金色) | F158: OP-800~1100 全高≦3000 | G158: 停 | H158: 25800 | I158: 23500 | J158: 2300 | K158: 0.09787234043
B159: 1C4240 | C159: P | D159: 335.336 | E159: 小框附幕板 亂紋鍍鈦(遠東特殊色) | F159: OP-800~1100 全高≦3000 | G159: 停 | H159: 33800 | I159: 31600 | J159: 2200 | K159: 0.06962025316
B160: 1C4300 | C160: P | D160: 335.336 | E160: 小型門框附幕板 霧珠板 | F160: OP-800~1100 全高≦3000 | G160: 停 | H160: 21200 | I160: 19000 | J160: 2200 | K160: 0.1157894737 | L160: 1.(遠東)霧珠板: B-00 2.(遠東)霧珠鍍鈦(金色): B-01 3.(遠東)霧珠鍍鈦(特殊色): B-02~B-05
B161: 1C4320 | C161: P | D161: 335.336 | E161: 小型門框附幕板 霧珠鍍鈦(金色) | F161: OP-800~1100 全高≦3000 | G161: 停 | H161: 25900 | I161: 23700 | J161: 2200 | K161: 0.09282700422
B162: 1C4340 | C162: P | D162: 335.336 | E162: 小框附幕板 霧珠鍍鈦(遠東特殊色) | F162: OP-800~1100 全高≦3000 | G162: 停 | H162: 34200 | I162: 31800 | J162: 2400 | K162: 0.07547169811
B163: 1C0760 | C163: P | D163: 335.336 | E163: 小框附幕板 IP(仿鍍鈦烤漆) | F163: OP-800~1100 全高≦3000 | G163: 停 | H163: 14300 | I163: 13400 | J163: =H163-I163 -> 900 | K163: =IF(I163>0,(H163-I163)/I163,-(H163-I163)/I163) -> 0.0671641791 | L163: 仿古咖色, 仿黑色, 仿古銅色, 仿金色.
B164: 1C1200 | C164: P | D164: 21.23 | E164: 大型門框附幕板 SH | F164: OP-800~1100 全高≦3000 | G164: 停 | H164: 27800 | I164: 23400 | J164: 4400 | K164: 0.188034188 | L164: 大型門框附幕板: 含HF-LM3顯示器 1.大型門框附幕板SH素材:為國內(唐榮)板材 2.大型門框附幕板SM素材:為(日新)板材 3.大框附幕板SH鍍鈦素材:(唐榮)板於國內加工鍍鈦 4.大框附幕板SM鍍鈦素材:(日新)板於國內加工鍍鈦 5.[遠東]特殊色: 計有咖啡. 古銅. 古咖. 黑色
B165: 1C1300 | C165: P | D165: 21.23 | E165: 大型門框附幕板 SH鍍鈦(金色) | F165: OP-800~1100 全高≦3000 | G165: 停 | H165: 37000 | I165: 32100 | J165: 4900 | K165: 0.1526479751
B166: 1C1350 | C166: P | D166: 21.23 | E166: 大框附幕板 SH鍍鈦(遠東特殊色) | F166: OP-800~900 全高≦3000 | G166: 停 | H166: 53700 | I166: 48900 | J166: 4800 | K166: 0.0981595092
B167: 1C1400 | C167: P | D167: 21.23 | E167: 大型門框附幕板 SM | F167: OP-800~1100 全高≦3000 | G167: 停 | H167: 32600 | I167: 28000 | J167: 4600 | K167: 0.1642857143
B168: 1C1500 | C168: P | D168: 21.23 | E168: 大型門框附幕板 SM鍍鈦(金色) | F168: OP-800~1100 全高≦3000 | G168: 停 | H168: 41800 | I168: 36800 | J168: 5000 | K168: 0.1358695652
B169: 1C1550 | C169: P | D169: 21.23 | E169: 大框附幕板 SM鍍鈦(遠東特殊色) | F169: OP-800~900 全高≦3000 | G169: 停 | H169: 58600 | I169: 53500 | J169: 5100 | K169: 0.0953271028
B170: 1C1750 | C170: P | D170: 21.23 | E170: 大框附幕板 SH鍍鈦(遠東特殊色) | F170: OP-1000~1100全高≦3000 | G170: 停 | H170: 58400 | I170: 53500 | J170: 4900 | K170: =IF(I170>0,(H170-I170)/I170,-(H170-I170)/I170) -> 0.09158878505
B171: 1C1950 | C171: P | D171: 21.23 | E171: 大框附幕板 SM鍍鈦(遠東特殊色) | F171: OP-1000~1100全高≦3000 | G171: 停 | H171: 63800 | I171: 58000 | J171: 5800 | K171: 0.1
B172: 1C4600 | C172: P | D172: 21.23 | E172: 大型門框附幕板 亂紋板 | F172: OP-800~1100 A值≦380 | G172: 停 | H172: 36800 | I172: 32100 | J172: 4700 | K172: 0.1464174455 | L172: 1.(遠東)亂紋板: V-00 2.(遠東)亂紋鍍鈦(金色): V-01 3.(遠東)亂紋鍍鈦(特殊色): V-02~V-05 4.[遠東]特殊色: 計有咖啡. 黑色. 古銅. 古咖
B173: 1C4620 | C173: P | D173: 21.23 | E173: 大型門框附幕板 亂紋鍍鈦(金色) | F173: OP-800~1100 A值≦380 | G173: 停 | H173: 45500 | I173: 40800 | J173: 4700 | K173: 0.1151960784
B174: 1C4640 | C174: P | D174: 21.23 | E174: 大框附幕板 亂紋鍍鈦(遠東特殊色) | F174: OP-800~900 A值≦380 | G174: 停 | H174: 62300 | I174: 57600 | J174: 4700 | K174: 0.08159722222
B175: 1C4660 | C175: P | D175: 21.23 | E175: 大框附幕板 亂紋鍍鈦(遠東特殊色) | F175: OP-1000~1100 A值≦380 | G175: 停 | H175: 67900 | I175: 62700 | J175: 5200 | K175: 0.08293460925
B176: 1C4700 | C176: P | D176: 21.23 | E176: 大型門框附幕板 霧珠板 | F176: OP-800~1100 A值≦380 | G176: 停 | H176: 37200 | I176: 32700 | J176: 4500 | K176: 0.1376146789 | L176: 1.(遠東)霧珠板: B-00 2.(遠東)霧珠鍍鈦(金色): B-01 3.(遠東)霧珠鍍鈦(特殊色): B-02~B-05 4.[遠東]特殊色: 計有咖啡. 黑色. 古銅. 古咖
B177: 1C4720 | C177: P | D177: 21.23 | E177: 大型門框附幕板 霧珠鍍鈦(金色) | F177: OP-800~1100 A值≦380 | G177: 停 | H177: 46000 | I177: 41300 | J177: 4700 | K177: 0.1138014528
B178: 1C4740 | C178: P | D178: 21.23 | E178: 大框附幕板 霧珠鍍鈦(遠東特殊色) | F178: OP-800~900 A值≦380 | G178: 停 | H178: 62700 | I178: 58000 | J178: 4700 | K178: 0.08103448276
B179: 1C4760 | C179: P | D179: 21.23 | E179: 大框附幕板 霧珠鍍鈦(遠東特殊色) | F179: OP-1000~1100 A值≦380 | G179: 停 | H179: 68400 | I179: 63200 | J179: 5200 | K179: 0.08227848101
B180: 1C1960 | C180: P | D180: 21.23 | E180: 大框附幕板 IP(仿鍍鈦烤漆) | F180: OP-800~1100 A值≦380 | G180: 停 | H180: 21300 | I180: 21000 | J180: =H180-I180 -> 300 | K180: =IF(I180>0,(H180-I180)/I180,-(H180-I180)/I180) -> 0.01428571429 | L180: 仿古咖色, 仿黑色, 仿古銅色, 仿金色.
B181: 1C2000 | C181: P | D181: 21.23.335.336 | E181: 面一式門框 | F181: OP-800~1100全高≦3000 | G181: 停 | H181: 5400 | I181: 5400 | J181: 0 | K181: 0 | L181: 要先加計大(小)框附幕板的底價
B182: 1B0100 | C182: B | D182: 16.17 | E182: 小型門框 SH鍍鈦(金色) | F182: 2S-2P OP-1100~1200W | G182: 停 | H182: 4700 | I182: 3900 | J182: 800 | K182: 0.2051282051 | L182: 小型門框SH素材:為國內(唐榮)板材 1.小型門框SM素材:為(日新)板材 2.小型門框SH鍍鈦素材:(唐榮)板於國內加工鍍鈦 3.小型門框SM鍍鈦素材:(日新)板於國內加工鍍鈦 4.[遠東]特殊色: 計有咖啡. 古銅. 古咖. 黑色
B183: 1B0110 | C183: B | D183: 16.17 | E183: 小型門框 SH鍍鈦(遠東特殊色) | F183: 2S-2P OP-1100~1200W | G183: 停 | H183: 9100 | I183: 8300 | J183: 800 | K183: 0.09638554217
B184: 1B0200 | C184: B | D184: 16.17 | E184: 小型門框 SM | F184: 2S-2P OP-1100~1200W | G184: 停 | H184: 3800 | I184: 2900 | J184: =H184-I184 -> 900 | K184: 0.3103448276
B185: 1B0210 | C185: B | D185: 16.17 | E185: 小型門框 SM鍍鈦(金色) | F185: 2S-2P OP-1100~1200W | G185: 停 | H185: 5900 | I185: 5000 | J185: =H185-I185 -> 900 | K185: 0.18
B186: 1B0220 | C186: B | D186: 16.17 | E186: 小型門框 SM鍍鈦(遠東特殊色) | F186: 2S-2P OP-1100~1200W | G186: 停 | H186: 10300 | I186: 9400 | J186: =H186-I186 -> 900 | K186: 0.09574468085
B187: 1B0300 | C187: B | D187: 18.19 | E187: 大型門框 SH | F187: 2S-1100.1200 A值≦380 | G187: 停 | H187: 15100 | I187: 11300 | J187: 3800 | K187: 0.3362831858 | L187: 大型門框SH素材:為國內(唐榮)板材 1.大型門框SM素材:為(日新)板材 2.大型門框SH鍍鈦素材:(唐榮)板於國內加工鍍鈦 3.大型門框SM鍍鈦素材:(日新)板於國內加工鍍鈦 4.[遠東]特殊色: 計有咖啡. 古銅. 古咖. 黑色
B188: 1B0310 | C188: B | D188: 18.19 | E188: 大型門框 SH鍍鈦(金色) | F188: 2S-1100.1200 A值≦380 | G188: 停 | H188: 23700 | I188: 19700 | J188: 4000 | K188: 0.2030456853
B189: 1B0320 | C189: B | D189: 18.19 | E189: 大型門框 SH鍍鈦(遠東特殊色) | F189: 2S-1100.1200 A值≦380 | G189: 停 | H189: 37100 | I189: 33000 | J189: 4100 | K189: 0.1242424242
B190: 1B0400 | C190: B | D190: 18.19 | E190: 大型門框 SM | F190: 2S-1100.1200 A值≦380 | G190: 停 | H190: 21000 | I190: 16700 | J190: =H190-I190 -> 4300 | K190: 0.2574850299
B191: 1B0410 | C191: B | D191: 18.19 | E191: 大型門框 SM鍍鈦(金色) | F191: 2S-1100.1200 A值≦380 | G191: 停 | H191: 27200 | I191: 22900 | J191: =H191-I191 -> 4300 | K191: 0.1877729258
B192: 1B0420 | C192: B | D192: 18.19 | E192: 大型門框 SM鍍鈦(遠東特殊色) | F192: 2S-1100.1200 A值≦380 | G192: 停 | H192: 40500 | I192: 36200 | J192: =H192-I192 -> 4300 | K192: 0.1187845304
B193: 1F0300 | C193: F | D193: 18.19 | E193: 大型門框 SH | F193: 2S-1400~1700W A值≦380 | G193: 停 | H193: 15800 | I193: 13200 | J193: =H193-I193 -> 2600 | K193: 0.196969697
B194: 1F0400 | C194: F | D194: 18.19 | E194: 大型門框 SH | F194: 4C-1700~2300W A值≦380 | G194: 停 | H194: 24500 | I194: 20400 | J194: =H194-I194 -> 4100 | K194: 0.2009803922
B196: 2C3000 | C196: P | D196: 316 | E196: 防火門(台)(2P-CO)(含FMS拉線測試) | G196: 台 | H196: 12400 | I196: 12200 | J196: =H196-I196 -> 200 | K196: 0.01639344262 | L196: 含火災管制追加.含火警總機→FMS線材,拉線測試.
B197: 2C3150 | C197: P.B | D197: 316 | E197: 防火門(台)(2S-2P)(含FMS拉線測試) | G197: 台 | H197: 12400 | I197: 12200 | J197: 200 | K197: 0.01639344262 | L197: 含火災管制追加.含火警總機→FMS線材,拉線測試.
A198: 修改 | B198: 2C3100 | C198: P | D198: 316 | E198: 防火門(停)(非IP)(2P-CO) | G198: 停 | H198: 21100 | I198: 20600 | J198: 500 | K198: 0.02427184466 | L198: 1.不含材質變更之差價
A199: 新增 | B199: 2C3110 | C199: P | D199: 316 | E199: 防火門(停)(指定IP)(2P-CO) | G199: 停 | H199: 30500 | J199: 30500 | L199: 1.不含材質變更之差價
A200: 修改 | B200: 2C3200 | C200: P.B | D200: 316 | E200: 防火門(停)(非IP)(2S-2P) | G200: 停 | H200: 22800 | I200: 22400 | J200: 400 | K200: 0.01785714286 | L200: 1.不含材質變更之差價
A201: 新增 | B201: 2C3210 | C201: P.B | D201: 316 | E201: 防火門(停)(指定IP)(2S-2P) | G201: 停 | H201: 32300 | J201: 32300 | L201: 1.不含材質變更之差價
B202: 2C2600 | C202: P.B.F | D202: 24 | E202: 製作烤漆色板(壓克力漆) | G202: 台 | H202: 2500 | I202: 2500 | J202: 0 | K202: 0
B203: 2C2610 | C203: P.B.F | D203: 24 | E203: 製作烤漆色板(金屬漆) | G203: 台 | H203: 3800 | I203: 3800 | J203: 0 | K203: 0
B204: 2C1900 | C204: P | D204: 24 | E204: 出入口門 金屬漆 (外包) | F204: 2P-CO ≦OP-800~900 | G204: 停 | H204: 3500 | I204: 3500 | J204: 0 | K204: 0 | L204: 依金屬漆型錄: 124M~129M 新增 4種金屬漆型號: J020, J122, J147, J191
B205: 2C2000 | C205: P | D205: 24 | E205: 出入口門 金屬漆 (外包) | F205: 2P-CO ≦OP-1000~1100 | G205: 停 | H205: 4200 | I205: 4200 | J205: 0 | K205: 0
B206: 2C2050 | C206: P | D206: 24 | E206: 出入口門 金屬漆 (自製) | F206: 2P-CO ≦OP-800~1100 | G206: 停 | H206: 1100 | I206: 1000 | J206: =H206-I206 -> 100 | K206: 0.1 | L206: 僅有 4種金屬漆型號: J020, J122, J147, J191
B207: 2C2060 | C207: P | D207: 24 | E207: 出入口門 (仿鍍鈦烤漆) | F207: 2P-CO ≦OP-800~900 | G207: 停 | H207: 3500 | I207: 3500 | J207: =H207-I207 -> 0 | K207: 0 | L207: (M042): 仿鍍鈦古咖色, (M043): 仿鍍鈦黑色 (M044): 仿鍍鈦古銅色, (M046): 仿鍍鈦金色
B208: 2C2070 | C208: P | D208: 24 | E208: 出入口門 (仿鍍鈦烤漆) | F208: 2P-CO ≦OP-1000~1100 | G208: 停 | H208: 4200 | I208: 4200 | J208: =H208-I208 -> 0 | K208: 0
B209: 2C2700 | C209: P | D209: 105.106 | E209: 新品臨時門(三角key)(IP) | F209: OP-800~900W × EH-2100 | G209: 停 | H209: 5800 | I209: 5700 | J209: =H209-I209 -> 100 | K209: 0.01754385965 | L209: (1)下述情況不能選用整修型臨時門:2S-2P,防火門, 面一式門框,隱藏式門框(上門框後退非20mm),廂門.
B210: 2C2710 | C210: P | D210: 105.106 | E210: 新品臨時門(三角key)(IP) | F210: OP-800~900W × EH-2300 | G210: 停 | H210: 6500 | I210: 6500 | J210: 0 | K210: 0
B211: 2C2720 | C211: P | D211: 105.106 | E211: 新品臨時門(三角key)(IP) | F211: OP-1000~1100W × EH-2100 | G211: 停 | H211: 8000 | I211: 7800 | J211: =H211-I211 -> 200 | K211: =IF(I211>0,(H211-I211)/I211,-(H211-I211)/I211) -> 0.02564102564
B212: 2C2730 | C212: P | D212: 105.106 | E212: 新品臨時門(三角key)(IP) | F212: OP-1000~1100W × EH-2300 | G212: 停 | H212: 9100 | I212: 8900 | J212: =H212-I212 -> 200 | K212: =IF(I212>0,(H212-I212)/I212,-(H212-I212)/I212) -> 0.02247191011
B213: 2C2740 | C213: P | D213: 105.106 | E213: 整修型臨時門(三角key)(鍍鋅鋼板) | F213: OP-800~900W × EH-2100 | G213: 停 | H213: 4400 | I213: 4300 | J213: =H213-I213 -> 100 | K213: =IF(I213>0,(H213-I213)/I213,-(H213-I213)/I213) -> 0.02325581395
B214: 2C2750 | C214: P | D214: 105.106 | E214: 整修型臨時門(三角key)(鍍鋅鋼板) | F214: OP-800~900W × EH-2300 | G214: 停 | H214: 5300 | I214: 5100 | J214: 200 | K214: 0.03921568627
B215: 2C2760 | C215: P | D215: 105.106 | E215: 整修型臨時門(三角key)(鍍鋅鋼板) | F215: (僅)OP-1000W × EH-2300 | G215: 停 | H215: 5900 | I215: 5700 | J215: =H215-I215 -> 200 | K215: =IF(I215>0,(H215-I215)/I215,-(H215-I215)/I215) -> 0.0350877193
... 788 more rows

Sheet 附表一
A1: 附 表 一 【賽斯新能源(新吉段)】
A5: 1 | B5: 型式（Type Form） | C5: : | D5: MAE100-12*10-CO90 x 1 台(有機房電梯)
A6: 2 | B6: 載重（Load/Passenger） | C6: : | D6: 800公斤/ 12人
A7: 3 | B7: 停止樓數（No. of Stop） | C7: : | D7: 10停／10樓（B2-B1,1-7,RF)（No.1)
A8: 4 | B8: 速度（Speed） | C8: : | D8: 90m/min
A9: 5 | B9: 控制方式（Control） | C9: : | D9: 交流變壓變頻選擇性集合式控制/單台運轉
A10: 6 | B10: 電源（Power Source） | C10: : | D10: 動力電源:三相220V/60Hz 照明電源:單相110V/60Hz
A11: 7 | B11: 出人口門框（Jamb） | C11: : | D11: 小框：B2-B1,1-7,RF
A12: 8 | B12: 出人口門框材質 | C12: : | D12: B2-B1,1-7,RF:髮紋不銹鋼
A13: 9 | B13: 出人口門（Hatch Door） | C13: : | D13: 中央二片對開(CO)
A14: 10 | B14: 出人口門材質 | C14: : | D14: B2-B1,1-7,RF:彩妝鋼板or鋼板烤漆
A15: 11 | B15: 出人口寬度（Opening） | C15: : | D15: 900×2300mm（寬*高)
A16: 12 | B16: 出人口指示燈及按鈕（Hall Indicator&Button）：全樓層:MF007(行動不便用)
A17: 13 | B17: 車廂（Cage） | C17: : | D17: 天花板型式（Ceiling Type） | F17: : | G17: MB001-MB004標準天井挑其一
D18: 三側壁（Enclosure Wall) | F18: : | G18: 前側(袖壁+上板)：髮紋不銹鋼
G19: 兩側：彩妝鋼板or鋼板烤漆
G20: 後側(兩旁)：彩妝鋼板or鋼板烤漆
G21: 後側(中間)：鏡面不鏽鋼(行動不便)
D22: 車廂門（Cage Door) | F22: : | G22: 彩妝鋼板or鋼板烤漆
D23: 地板（Flooring) | F23: : | G23: 預留25mm(石材甲方負責)or塑膠地磚
D24: 換氣（Ventilation) | F24: : | G24: 標準風扇
D25: 操作盤（Operating Panel） | F25: : | G25: ME001+ME013(行動不便用)
D26: 扶手 | F26: : | G26: MC002、MC004挑其一(三側扶手)
D27: 車廂位置指示器（Car Position Indicator)：附於車廂操作盤(OPB)上
A28: 14 | B28: 車廂尺寸(寬x長x高) | C28: : | D28: 1400x1400x2500mm
A29: 15 | B29: 警報方式（Alarm） | C29: : | D29: 電話機
A30: 16 | B30: 升降道尺寸及各層樓高度（Hoist Way & Each Floor Height）：依計劃圖
A31: 17 | B31: 其他（Other） | C31: :
D32: 1.CCTV線材與配管由甲方負責，乙方僅負責昇降道內配合施工
D33: 2.車廂操作盤上附門開延長
D34: 3.附紅外線安全門檔
D35: 4.附隱藏式分層管控接點(不含讀卡機)
D36: 5.附行動不便設備
D37: 6.本案有一鍵呼功能(市話求救)，甲方需申請市話專線並出線至尾樓升降道
D38: 7.其餘標配機能請參閱型錄
D39: 8.本案無電梯乘場防火門(圖說無標註)
D40: 9.施工時升降道內若遇內凸樑過大，需分隔樑補強時，再依現地情況另行報價
D41: 10.附地震感知器
